[Event "FIDE Women World Blitz 2021"]
[Site "Warsaw"]
[Date "2021.12.29"]
[Round "9.11"]
[White "Heredia Serrano, Carla"]
[Black "Budkiewicz, Magdalena"]
[Result "0-1"]
[ECO "B08"]
[WhiteElo "2138"]
[BlackElo "1624"]
[Annotator "NA"]
[PlyCount "150"]
[EventDate "2021.12.29"]
[EventType "swiss"]
[EventCountry "POL"]
[Tiebreak "Cut1 Buchholz"]
[SourceTitle "playchess.com"]
[Source "ChessBase"]
[SourceQuality "1"]
[TimeControl "180+2"]

1. d4 {[%emt 0:00:01]} Nf6 {[%emt 0:00:01]} 2. Nc3 {[%emt 0:00:01]} g6 {
[%emt 0:00:00]} 3. e4 {[%emt 0:00:01]} d6 {[%emt 0:00:02]} 4. Nf3 {[%emt 0:00:
02]} Bg7 {[%emt 0:00:01]} 5. h3 {[%emt 0:00:01]} O-O {[%emt 0:00:05]} 6. Be3 {
[%emt 0:00:00]} e5 {[%emt 0:00:07]} 7. dxe5 {[%emt 0:00:11]} dxe5 {[%emt 0:00:
01]} 8. Qxd8 {[%emt 0:00:06]} Rxd8 {[%emt 0:00:01]} 9. Bc4 {[%emt 0:00:01]} Ne8
{[%emt 0:00:44]} 10. Nd5 {[%emt 0:01:13]} Nc6 {[%emt 0:00:14]} 11. Ng5 {
[%emt 0:00:17]} Be6 {[%emt 0:00:40]} 12. Nxe6 {[%emt 0:00:07]} fxe6 {[%emt 0:
00:00]} 13. Nc3 {[%emt 0:00:08]} Kf7 {[%emt 0:00:07]} 14. Ne2 {[%emt 0:00:26]}
Nd6 {[%emt 0:00:01]} 15. Bd3 {[%emt 0:00:04]} Nd4 {[%emt 0:00:15]} 16. Nxd4 {
[%emt 0:00:19]} exd4 {[%emt 0:00:01]} 17. Bf4 {[%emt 0:00:04]} e5 {[%emt 0:00:
06]} 18. Bd2 {[%emt 0:00:01]} Ke6 {[%emt 0:00:04]} 19. O-O {[%emt 0:00:05]} Rf8
{[%emt 0:00:21]} 20. a4 {[%emt 0:00:05]} c5 {[%emt 0:00:23]} 21. b3 {[%emt 0:
00:01]} Rac8 {[%emt 0:00:00]} 22. Rab1 {[%emt 0:00:05]} Bf6 {[%emt 0:00:08]}
23. g3 {[%emt 0:00:05]} g5 {[%emt 0:00:04]} 24. Kg2 {[%emt 0:00:03]} h6 {
[%emt 0:00:03]} 25. Bc1 {[%emt 0:00:07]} b6 {[%emt 0:00:04]} 26. Be2 {[%emt 0:
00:01]} Ke7 {[%emt 0:00:01]} 27. Bg4 {[%emt 0:00:03]} Rc7 {[%emt 0:00:02]} 28.
Re1 {[%emt 0:00:02]} c4 {[%emt 0:00:05]} 29. Ba3 {[%emt 0:00:04]} Rd8 {[%emt 0:
00:11]} 30. bxc4 {[%emt 0:00:04]} Rxc4 {[%emt 0:00:01]} 31. Rb2 {[%emt 0:00:04]
} Rxa4 {[%emt 0:00:01]} 32. Bb4 {[%emt 0:00:06]} Bg7 {[%emt 0:00:03]} 33. Reb1
{[%emt 0:00:04]} Bf8 {[%emt 0:00:02]} 34. h4 {[%emt 0:00:02]} Kf6 {[%emt 0:00:
01]} 35. hxg5+ {[%emt 0:00:01]} hxg5 {[%emt 0:00:01]} 36. Rh1 {[%emt 0:00:01]}
Be7 {[%emt 0:00:02]} 37. Rh6+ {[%emt 0:00:01]} Kg7 {[%emt 0:00:06]} 38. Re6 Kf7
{[%emt 0:00:00]} 39. Rxe5 {[%emt 0:00:06]} Bf6 {[%emt 0:00:03]} 40. Rd5 {
[%emt 0:00:03]} Be7 {[%emt 0:00:02]} 41. Bh5+ {[%emt 0:00:01]} Kf6 {[%emt 0:00:
01]} 42. Rb1 {[%emt 0:00:02]} a5 {[%emt 0:00:06]} 43. Bxd6 {[%emt 0:00:02]}
Bxd6 {[%emt 0:00:01]} 44. e5+ {[%emt 0:00:02]} Ke6 {[%emt 0:00:02]} 45. Bf3 {
[%emt 0:00:02]} Bc7 {[%emt 0:00:02]} 46. Rxd8 {[%emt 0:00:03]} Bxd8 {[%emt 0:
00:01]} 47. Be2 {[%emt 0:00:02]} Kxe5 {[%emt 0:00:02]} 48. Re1 {[%emt 0:00:02]}
Kd6 {[%emt 0:00:01]} 49. Bd3 {[%emt 0:00:00]} Bf6 {[%emt 0:00:01]} 50. Bf5 {
[%emt 0:00:02]} Rc4 {[%emt 0:00:02]} 51. Re6+ {[%emt 0:00:02]} Kd5 {[%emt 0:00:
02]} 52. Rxf6 {[%emt 0:00:00]} Ke5 {[%emt 0:00:00]} 53. Rf8 {[%emt 0:00:01]}
Rc6 {[%emt 0:00:01]} 54. Bd3 {[%emt 0:00:02]} Rc5 {[%emt 0:00:05]} 55. Rb8 {
[%emt 0:00:02]} Rc6 {[%emt 0:00:00]} 56. Re8+ {[%emt 0:00:01]} Kd6 {[%emt 0:00:
00]} 57. Rg8 {[%emt 0:00:02]} Rc5 {[%emt 0:00:01]} 58. Rg6+ {[%emt 0:00:01]}
Kc7 {[%emt 0:00:01]} 59. Rg7+ {[%emt 0:00:02]} Kc6 {[%emt 0:00:01]} 60. Rg6+ {
[%emt 0:00:01]} Kd5 {[%emt 0:00:01]} 61. Kf3 {[%emt 0:00:01]} a4 {[%emt 0:00:
03]} 62. Rxg5+ {[%emt 0:00:02]} Kc6 {[%emt 0:00:00]} 63. Rg8 {[%emt 0:00:05]}
b5 {[%emt 0:00:03]} 64. Ra8 {[%emt 0:00:02]} Rh5 {[%emt 0:00:03]} 65. Ra6+ {
[%emt 0:00:04]} Kc5 {[%emt 0:00:01]} 66. Ra5 {[%emt 0:00:02]} Kb4 {[%emt 0:00:
00]} 67. g4 {[%emt 0:00:04]} Kxa5 {[%emt 0:00:05]} 68. gxh5 {[%emt 0:00:00]} a3
{[%emt 0:00:01]} 69. h6 {[%emt 0:00:05]} a2 {[%emt 0:00:00]} 70. h7 {[%emt 0:
00:00]} a1=Q {[%emt 0:00:03]} 71. h8=Q {[%emt 0:00:01]} Qc3 {[%emt 0:00:00]}
72. Qa8+ {[%emt 0:00:03]} Kb4 {[%emt 0:00:01]} 73. Qf8+ {[%emt 0:00:03]} Ka4 {
[%emt 0:00:01]} 74. Qa8+ {[%emt 0:00:04]} Kb4 {[%emt 0:00:01]} 75. Qa2 {
[%emt 0:00:05]} Qc6+ {[%emt 0:00:25]} 0-1

[Event "FIDE Women World Blitz 2021"]
[Site "Warsaw"]
[Date "2021.12.29"]
[Round "9.12"]
[White "Kashlinskaya, Alina"]
[Black "Mamedjarova, Zeinab"]
[Result "1-0"]
[ECO "A40"]
[WhiteElo "2482"]
[BlackElo "2249"]
[Annotator "ChessBase"]
[PlyCount "113"]
[EventDate "2021.12.29"]
[EventType "swiss"]
[EventCountry "POL"]
[Tiebreak "Cut1 Buchholz"]
[SourceTitle "playchess.com"]
[Source "ChessBase"]
[SourceQuality "1"]
[TimeControl "180+2"]

1. d4 {[%emt 0:00:02]} Nf6 {[%emt 0:00:10]} 2. c4 {[%emt 0:00:01]} e6 {[%emt 0:
00:00]} 3. Nc3 {[%emt 0:00:01]} b6 {[%emt 0:00:05]} 4. a3 {[%emt 0:00:10]} Bb7
{[%emt 0:00:04]} 5. Bf4 {[%emt 0:00:02]} Be7 {[%emt 0:00:10]} 6. e3 {[%emt 0:
00:03]} O-O {[%emt 0:00:01]} 7. Qc2 {[%emt 0:00:05]} h6 {[%emt 0:00:06]} 8. Nf3
{[%emt 0:00:03]} d6 {[%emt 0:00:17]} 9. h3 {[%emt 0:00:04]} Re8 {[%emt 0:00:01]
} 10. Be2 {[%emt 0:00:05]} Nbd7 {[%emt 0:00:30]} 11. O-O {[%emt 0:00:02]} Bf8 {
[%emt 0:00:06]} 12. Rad1 {[%emt 0:00:04]} a6 {[%emt 0:00:10]} 13. Bh2 {[%emt 0:
00:05]} Qe7 {[%emt 0:00:05]} 14. d5 {[%emt 0:00:07]} e5 {[%emt 0:00:16]} 15. b4
{[%emt 0:00:04]} g6 {[%emt 0:00:03]} 16. Nd2 {[%emt 0:00:04]} Bg7 {[%emt 0:00:
01]} 17. Nb3 {[%emt 0:00:04]} e4 {[%emt 0:00:16]} 18. Nd4 {[%emt 0:00:06]} Nh7
{[%emt 0:00:07]} 19. Nc6 {[%emt 0:00:11]} Bxc6 {[%emt 0:00:03]} 20. dxc6 {
[%emt 0:00:02]} Ndf6 {[%emt 0:00:10]} 21. c5 {[%emt 0:00:16]} dxc5 {[%emt 0:00:
10]} 22. b5 {[%emt 0:00:05]} a5 {[%emt 0:00:07]} 23. Bc4 {[%emt 0:00:02]} Ng5 {
[%emt 0:00:04]} 24. Nd5 {[%emt 0:00:07]} Nxd5 {[%emt 0:00:02]} 25. Rxd5 {
[%emt 0:00:01]} Rad8 {[%emt 0:00:09]} 26. Rfd1 {[%emt 0:00:02]} Rxd5 {[%emt 0:
00:04]} 27. Rxd5 {[%emt 0:00:01]} Rd8 {[%emt 0:00:03]} 28. h4 {[%emt 0:00:10]}
Nh7 {[%emt 0:00:19]} 29. Rxd8+ {[%emt 0:00:16]} Qxd8 30. Qxe4 {[%emt 0:00:02]}
Nf6 {[%emt 0:00:02]} 31. Qf4 {[%emt 0:00:18]} Qd1+ {[%emt 0:00:04]} 32. Bf1 {
[%emt 0:00:01]} Ne8 {[%emt 0:00:02]} 33. h5 {[%emt 0:00:09]} Qxh5 {[%emt 0:00:
12]} 34. Bg3 {[%emt 0:00:29]} Nd6 {[%emt 0:00:04]} 35. f3 {[%emt 0:00:14]} Qd5
{[%emt 0:00:02]} 36. Qg4 {[%emt 0:00:02]} Qd2 {[%emt 0:00:02]} 37. Qd7 {
[%emt 0:00:13]} Qxe3+ {[%emt 0:00:03]} 38. Bf2 {[%emt 0:00:00]} Qe8 {[%emt 0:
00:02]} 39. Qxc7 {[%emt 0:00:02]} Nf5 {[%emt 0:00:02]} 40. Qb7 {[%emt 0:00:10]}
Be5 {[%emt 0:00:01]} 41. c7 {[%emt 0:00:05]} Ne7 {[%emt 0:00:01]} 42. Bc4 {
[%emt 0:00:06]} Qd7 {[%emt 0:00:01]} 43. c8=Q+ {[%emt 0:00:07]} Qxc8 {[%emt 0:
00:01]} 44. Qxe7 {[%emt 0:00:01]} Qf5 {[%emt 0:00:00]} 45. Bxf7+ {[%emt 0:00:
03]} Qxf7 {[%emt 0:00:02]} 46. Qxe5 {[%emt 0:00:01]} Qb3 {[%emt 0:00:07]} 47.
Qb8+ {[%emt 0:00:01]} Kf7 {[%emt 0:00:02]} 48. Qb7+ {[%emt 0:00:02]} Kg8 {
[%emt 0:00:02]} 49. Qxb6 {[%emt 0:00:01]} Qb1+ {[%emt 0:00:02]} 50. Kh2 {
[%emt 0:00:01]} Qf5 {[%emt 0:00:02]} 51. Qd8+ {[%emt 0:00:03]} Kf7 {[%emt 0:00:
01]} 52. Qc7+ {[%emt 0:00:02]} Kg8 {[%emt 0:00:02]} 53. Qxc5 {[%emt 0:00:01]}
Qf4+ {[%emt 0:00:01]} 54. Bg3 {[%emt 0:00:02]} Qa4 {[%emt 0:00:04]} 55. b6 {
[%emt 0:00:02]} Qb3 {[%emt 0:00:04]} 56. Qc8+ {[%emt 0:00:02]} Kf7 {[%emt 0:00:
01]} 57. b7 {[%emt 0:00:01]} 1-0

[Event "FIDE Women World Blitz 2021"]
[Site "Warsaw"]
[Date "2021.12.29"]
[Round "9.12"]
[White "Szczotka, Klara"]
[Black "Rudzinska, Michalina"]
[Result "1-0"]
[ECO "B51"]
[WhiteElo "1584"]
[BlackElo "1832"]
[Annotator "NA"]
[PlyCount "107"]
[EventDate "2021.12.29"]
[EventType "swiss"]
[EventCountry "POL"]
[Tiebreak "Cut1 Buchholz"]
[SourceTitle "playchess.com"]
[Source "ChessBase"]
[SourceQuality "1"]
[TimeControl "180+2"]

1. e4 {[%emt 0:00:01]} c5 {[%emt 0:00:01]} 2. Nf3 {[%emt 0:00:01]} d6 {[%emt 0:
00:01]} 3. Bb5+ {[%emt 0:00:01]} Nd7 {[%emt 0:00:01]} 4. O-O {[%emt 0:00:07]}
a6 {[%emt 0:00:01]} 5. Bd3 {[%emt 0:00:01]} Ngf6 {[%emt 0:00:02]} 6. c3 {
[%emt 0:00:03]} e5 {[%emt 0:00:02]} 7. Bc2 {[%emt 0:00:02]} g6 {[%emt 0:00:05]}
8. d4 {[%emt 0:00:04]} Bg7 {[%emt 0:00:05]} 9. Re1 {[%emt 0:00:03]} O-O {
[%emt 0:00:02]} 10. a4 {[%emt 0:00:11]} Qc7 {[%emt 0:00:03]} 11. Na3 {[%emt 0:
00:08]} Re8 {[%emt 0:00:24]} 12. Bg5 {[%emt 0:00:14]} h6 {[%emt 0:00:04]} 13.
Bh4 {[%emt 0:00:01]} exd4 {[%emt 0:00:08]} 14. cxd4 {[%emt 0:00:02]} cxd4 {
[%emt 0:00:02]} 15. Nxd4 {[%emt 0:00:09]} Nc5 {[%emt 0:00:02]} 16. f3 {[%emt 0:
00:22]} Ne6 {[%emt 0:00:05]} 17. Bf2 {[%emt 0:00:10]} b6 {[%emt 0:00:21]} 18.
Rc1 {[%emt 0:00:02]} Bb7 {[%emt 0:00:13]} 19. Nxe6 {[%emt 0:00:13]} fxe6 {
[%emt 0:00:01]} 20. Bb3 {[%emt 0:00:03]} Qe7 {[%emt 0:00:24]} 21. Bxb6 {
[%emt 0:00:10]} Rac8 {[%emt 0:00:02]} 22. Qd3 {[%emt 0:00:26]} Nd7 {[%emt 0:00:
04]} 23. Bd4 {[%emt 0:00:16]} Ne5 {[%emt 0:00:11]} 24. Qe3 {[%emt 0:00:10]} Kh7
{[%emt 0:00:10]} 25. Nc4 {[%emt 0:00:03]} Nxc4 {[%emt 0:00:05]} 26. Bxc4 {
[%emt 0:00:04]} Rc7 {[%emt 0:00:50]} 27. Bb3 {[%emt 0:00:24]} e5 {[%emt 0:00:
10]} 28. Bb6 {[%emt 0:00:04]} Rd7 {[%emt 0:00:05]} 29. a5 {[%emt 0:00:05]} h5 {
[%emt 0:00:02]} 30. Qd3 {[%emt 0:00:06]} Bh6 {[%emt 0:00:02]} 31. Be3 {[%emt 0:
00:01]} Bxe3+ {[%emt 0:00:08]} 32. Qxe3 {[%emt 0:00:01]} Rc8 {[%emt 0:00:01]}
33. Rxc8 {[%emt 0:00:03]} Bxc8 {[%emt 0:00:01]} 34. Rc1 {[%emt 0:00:00]} Rc7 {
[%emt 0:00:02]} 35. Rxc7 {[%emt 0:00:03]} Qxc7 {[%emt 0:00:01]} 36. Qc3 {
[%emt 0:00:01]} Qa7+ {[%emt 0:00:03]} 37. Kf1 {[%emt 0:00:02]} Bd7 {[%emt 0:00:
02]} 38. Bc4 {[%emt 0:00:03]} Qc5 {[%emt 0:00:03]} 39. Be2 {[%emt 0:00:04]} Qa7
{[%emt 0:00:02]} 40. Qd3 {[%emt 0:00:05]} Qb7 {[%emt 0:00:06]} 41. Qxd6 {
[%emt 0:00:04]} Ba4 {[%emt 0:00:03]} 42. Qd2 {[%emt 0:00:03]} Qc6 {[%emt 0:00:
02]} 43. Qc3 {[%emt 0:00:02]} Qd7 {[%emt 0:00:01]} 44. Qxe5 {[%emt 0:00:04]}
Qb7 {[%emt 0:00:02]} 45. Qc3 {[%emt 0:00:02]} Qd7 {[%emt 0:00:01]} 46. Kf2 {
[%emt 0:00:02]} Qa7+ {[%emt 0:00:02]} 47. Qe3 {[%emt 0:00:01]} Qb7 {[%emt 0:00:
01]} 48. Qd4 {[%emt 0:00:03]} Qc6 {[%emt 0:00:02]} 49. Bc4 {[%emt 0:00:03]} Qb7
{[%emt 0:00:03]} 50. Qd5 {[%emt 0:00:02]} Qg7 {[%emt 0:00:03]} 51. Qf7 {
[%emt 0:00:02]} Qxf7 {[%emt 0:00:02]} 52. Bxf7 {[%emt 0:00:01]} Kg7 {[%emt 0:
00:01]} 53. Bc4 {[%emt 0:00:01]} Kf6 {[%emt 0:00:04]} 54. Bxa6 {[%emt 0:00:01]}
1-0

[Event "FIDE Women World Blitz 2021"]
[Site "Warsaw"]
[Date "2021.12.29"]
[Round "9.13"]
[White "Zatonskih, Anna"]
[Black "Balajayeva, Khanim"]
[Result "1-0"]
[ECO "E33"]
[WhiteElo "2394"]
[BlackElo "2369"]
[Annotator "NA"]
[PlyCount "101"]
[EventDate "2021.12.29"]
[EventType "swiss"]
[EventCountry "POL"]
[Tiebreak "Cut1 Buchholz"]
[SourceTitle "playchess.com"]
[Source "ChessBase"]
[SourceQuality "1"]
[TimeControl "180+2"]

1. d4 {[%emt 0:00:01]} Nf6 {[%emt 0:00:01]} 2. c4 {[%emt 0:00:08]} e6 {[%emt 0:
00:01]} 3. Nc3 {[%emt 0:00:01]} Bb4 {[%emt 0:00:01]} 4. Qc2 {[%emt 0:00:01]}
Nc6 {[%emt 0:00:13]} 5. Nf3 {[%emt 0:00:09]} d6 {[%emt 0:00:03]} 6. Bd2 {
[%emt 0:00:21]} O-O {[%emt 0:00:16]} 7. a3 {[%emt 0:00:00]} Bxc3 {[%emt 0:00:
04]} 8. Bxc3 {[%emt 0:00:02]} Qe7 {[%emt 0:00:02]} 9. e4 {[%emt 0:00:48]} e5 {
[%emt 0:00:01]} 10. d5 {[%emt 0:00:02]} Nd8 {[%emt 0:00:25]} 11. Nd2 {[%emt 0:
00:16]} a5 {[%emt 0:00:20]} 12. b3 {[%emt 0:00:05]} b6 {[%emt 0:00:01]} 13. g3
{[%emt 0:00:17]} Ne8 {[%emt 0:00:34]} 14. Bd3 {[%emt 0:00:12]} Bh3 {[%emt 0:00:
18]} 15. O-O-O {[%emt 0:00:02]} Nb7 {[%emt 0:00:03]} 16. f4 {[%emt 0:00:16]}
Nc5 {[%emt 0:00:11]} 17. Bb2 {[%emt 0:00:06]} Bd7 {[%emt 0:00:07]} 18. Rhf1 {
[%emt 0:00:14]} c6 {[%emt 0:00:11]} 19. Rde1 {[%emt 0:00:06]} Nc7 {[%emt 0:00:
05]} 20. Nf3 {[%emt 0:00:06]} f6 {[%emt 0:00:10]} 21. Nh4 {[%emt 0:00:08]} b5 {
[%emt 0:00:03]} 22. dxc6 {[%emt 0:00:02]} Bxc6 {[%emt 0:00:02]} 23. Nf5 {
[%emt 0:00:01]} Qe6 {[%emt 0:00:08]} 24. Rd1 {[%emt 0:00:08]} a4 {[%emt 0:00:
03]} 25. b4 {[%emt 0:00:02]} Nb3+ {[%emt 0:00:03]} 26. Kb1 {[%emt 0:00:01]} g6
{[%emt 0:00:03]} 27. Ne3 {[%emt 0:00:02]} Bd7 {[%emt 0:00:14]} 28. f5 {[%emt 0:
00:01]} Qe7 {[%emt 0:00:03]} 29. cxb5 {[%emt 0:00:02]} Rfc8 {[%emt 0:00:04]}
30. Qe2 {[%emt 0:00:02]} g5 {[%emt 0:00:02]} 31. Bc4+ {[%emt 0:00:02]} Kf8 {
[%emt 0:00:01]} 32. Nd5 {[%emt 0:00:01]} Nxd5 {[%emt 0:00:02]} 33. Bxd5 {
[%emt 0:00:01]} Rab8 {[%emt 0:00:00]} 34. Bc4 {[%emt 0:00:01]} Qe8 {[%emt 0:00:
03]} 35. h4 {[%emt 0:00:03]} Bxb5 {[%emt 0:00:02]} 36. Bxb5 {[%emt 0:00:00]}
Qxb5 {[%emt 0:00:00]} 37. Qxb5 {[%emt 0:00:03]} Rxb5 {[%emt 0:00:01]} 38. Rxd6
{[%emt 0:00:01]} Ke7 {[%emt 0:00:06]} 39. Rfd1 {[%emt 0:00:01]} Nd4 {[%emt 0:
00:04]} 40. Ra6 {[%emt 0:00:03]} Nc6 {[%emt 0:00:04]} 41. Rxa4 {[%emt 0:00:03]}
gxh4 {[%emt 0:00:01]} 42. gxh4 {[%emt 0:00:01]} Rg8 {[%emt 0:00:01]} 43. Ra6 {
[%emt 0:00:01]} Rc8 {[%emt 0:00:03]} 44. Rc1 {[%emt 0:00:03]} Kd7 {[%emt 0:00:
01]} 45. Rc2 {[%emt 0:00:03]} Rb7 {[%emt 0:00:05]} 46. Bc1 {[%emt 0:00:04]}
Rbc7 {[%emt 0:00:02]} 47. Be3 {[%emt 0:00:02]} Rg8 {[%emt 0:00:01]} 48. Bb6 {
[%emt 0:00:04]} Rcc8 {[%emt 0:00:01]} 49. b5 {[%emt 0:00:02]} Nb8 {[%emt 0:00:
01]} 50. Ra7+ {[%emt 0:00:01]} Kd6 {[%emt 0:00:02]} 51. Rd2# {[%emt 0:00:03]}
1-0

[Event "FIDE Women World Blitz 2021"]
[Site "Warsaw"]
[Date "2021.12.29"]
[Round "9.14"]
[White "Muzychuk, Mariya"]
[Black "Salimova, Nurgyul"]
[Result "1-0"]
[ECO "C47"]
[WhiteElo "2536"]
[BlackElo "2353"]
[Annotator "ChessBase"]
[PlyCount "132"]
[EventDate "2021.12.29"]
[EventType "swiss"]
[EventCountry "POL"]
[Tiebreak "Cut1 Buchholz"]
[SourceTitle "playchess.com"]
[Source "ChessBase"]
[SourceQuality "1"]
[TimeControl "180+2"]

1. e4 {[%emt 0:00:01]} e5 {[%emt 0:00:01]} 2. Nf3 {[%emt 0:00:00]} Nc6 {
[%emt 0:00:01]} 3. Nc3 {[%emt 0:00:01]} Nf6 {[%emt 0:00:02]} 4. d4 {[%emt 0:00:
00]} exd4 {[%emt 0:00:03]} 5. Nxd4 {[%emt 0:00:01]} Bb4 {[%emt 0:00:03]} 6.
Nxc6 {[%emt 0:00:01]} bxc6 {[%emt 0:00:01]} 7. Bd3 {[%emt 0:00:00]} d5 {
[%emt 0:00:09]} 8. exd5 {[%emt 0:00:02]} cxd5 {[%emt 0:00:04]} 9. O-O {[%emt 0:
00:01]} O-O {[%emt 0:00:02]} 10. h3 {[%emt 0:00:02]} c6 {[%emt 0:00:09]} 11.
Qf3 {[%emt 0:00:02]} Bd6 {[%emt 0:00:08]} 12. Bg5 {[%emt 0:00:38]} Rb8 {
[%emt 0:00:04]} 13. b3 {[%emt 0:00:06]} Be5 {[%emt 0:00:57]} 14. Bf4 {[%emt 0:
00:01]} Qc7 {[%emt 0:00:30]} 15. Bxe5 {[%emt 0:00:07]} Qxe5 {[%emt 0:00:01]}
16. Rfe1 {[%emt 0:00:03]} Qc7 {[%emt 0:00:12]} 17. Rad1 {[%emt 0:00:11]} Rb4 {
[%emt 0:00:02]} 18. Ne2 {[%emt 0:00:09]} Bd7 {[%emt 0:00:16]} 19. c3 {[%emt 0:
00:07]} Rbb8 {[%emt 0:00:15]} 20. Nd4 {[%emt 0:00:05]} Rfe8 {[%emt 0:00:01]}
21. Nf5 {[%emt 0:00:06]} Bxf5 {[%emt 0:00:03]} 22. Bxf5 {[%emt 0:00:15]} Re7 {
[%emt 0:00:12]} 23. Kf1 {[%emt 0:00:28]} Rbe8 {[%emt 0:00:02]} 24. Rxe7 {
[%emt 0:00:04]} Qxe7 {[%emt 0:00:01]} 25. g4 {[%emt 0:00:11]} g6 {[%emt 0:00:
05]} 26. Bd3 {[%emt 0:00:05]} Nd7 {[%emt 0:00:01]} 27. Kg2 {[%emt 0:00:09]} Qc5
{[%emt 0:00:07]} 28. Bc2 {[%emt 0:00:10]} Qa3 {[%emt 0:00:05]} 29. Rd2 {
[%emt 0:00:27]} Qc1 {[%emt 0:00:13]} 30. Qd1 {[%emt 0:00:02]} Re1 {[%emt 0:00:
03]} 31. Qxc1 {[%emt 0:00:01]} Rxc1 {[%emt 0:00:01]} 32. c4 {[%emt 0:00:03]}
Nb6 {[%emt 0:00:06]} 33. cxd5 {[%emt 0:00:03]} cxd5 {[%emt 0:00:02]} 34. Bd3 {
[%emt 0:00:04]} Kg7 {[%emt 0:00:02]} 35. Kf3 {[%emt 0:00:02]} h6 {[%emt 0:00:
02]} 36. Rc2 {[%emt 0:00:04]} Ra1 {[%emt 0:00:02]} 37. Bb5 {[%emt 0:00:02]} g5
{[%emt 0:00:02]} 38. a4 {[%emt 0:00:05]} Rh1 {[%emt 0:00:02]} 39. Kg2 {[%emt 0:
00:01]} Rb1 {[%emt 0:00:02]} 40. Rc3 {[%emt 0:00:03]} d4 {[%emt 0:00:01]} 41.
Rd3 {[%emt 0:00:00]} Nd5 {[%emt 0:00:01]} 42. Rxd4 {[%emt 0:00:08]} Nf4+ {
[%emt 0:00:01]} 43. Kh2 {[%emt 0:00:04]} Rxb3 {[%emt 0:00:03]} 44. Bf1 {
[%emt 0:00:02]} Rb2 {[%emt 0:00:03]} 45. Kg3 {[%emt 0:00:02]} Rb1 {[%emt 0:00:
01]} 46. Bc4 {[%emt 0:00:04]} Rg1+ {[%emt 0:00:02]} 47. Kf3 {[%emt 0:00:01]}
Nxh3 {[%emt 0:00:03]} 48. Rd7 {[%emt 0:00:00]} Nf4 {[%emt 0:00:02]} 49. Rxf7+ {
[%emt 0:00:01]} Kg6 {[%emt 0:00:02]} 50. Rxa7 {[%emt 0:00:01]} Rc1 {[%emt 0:00:
02]} 51. Bb5 {[%emt 0:00:06]} Rc3+ {[%emt 0:00:05]} 52. Ke4 Kf6 {[%emt 0:00:02]
} 53. a5 {[%emt 0:00:01]} Rc2 {[%emt 0:00:01]} 54. f3 {[%emt 0:00:01]} Ra2 {
[%emt 0:00:02]} 55. a6 {[%emt 0:00:00]} Ra5 {[%emt 0:00:02]} 56. Bc6 {[%emt 0:
00:09]} Re5+ {[%emt 0:00:00]} 57. Kd4 {[%emt 0:00:01]} Ne6+ {[%emt 0:00:02]}
58. Kd3 {[%emt 0:00:02]} Rc5 {[%emt 0:00:04]} 59. Bb7 {[%emt 0:00:02]} Rc7 {
[%emt 0:00:03]} 60. Ra8 {[%emt 0:00:04]} Nc5+ {[%emt 0:00:01]} 61. Kd4 {
[%emt 0:00:02]} Nxb7 {[%emt 0:00:02]} 62. Ra7 {[%emt 0:00:07]} Rd7+ {[%emt 0:
00:03]} 63. Ke3 {[%emt 0:00:01]} Re7+ {[%emt 0:00:01]} 64. Kf2 {[%emt 0:00:00]}
Ke6 {[%emt 0:00:02]} 65. axb7 {[%emt 0:00:03]} Re8 {[%emt 0:00:01]} 66. Ra8 {
[%emt 0:00:01]} Kd5 {[%emt 0:00:04]} 1-0

[Event "FIDE Women World Blitz 2021"]
[Site "Warsaw"]
[Date "2021.12.29"]
[Round "9.15"]
[White "Mammadova, Gulnar"]
[Black "Buksa, Nataliya"]
[Result "0-1"]
[ECO "B20"]
[WhiteElo "2395"]
[BlackElo "2199"]
[Annotator "NA"]
[PlyCount "106"]
[EventDate "2021.12.29"]
[EventType "swiss"]
[EventCountry "POL"]
[Tiebreak "Cut1 Buchholz"]
[SourceTitle "playchess.com"]
[Source "ChessBase"]
[SourceQuality "1"]
[TimeControl "180+2"]

1. e4 {[%emt 0:00:02]} c5 {[%emt 0:00:01]} 2. b3 {[%emt 0:00:02]} Nc6 {[%emt 0:
00:02]} 3. Bb2 {[%emt 0:00:01]} d6 {[%emt 0:00:01]} 4. Bb5 {[%emt 0:00:21]} Nf6
{[%emt 0:00:01]} 5. Nc3 {[%emt 0:00:04]} g6 {[%emt 0:00:03]} 6. Nd5 {[%emt 0:
00:14]} Bg7 {[%emt 0:00:01]} 7. Nxf6+ {[%emt 0:00:01]} exf6 {[%emt 0:00:02]} 8.
Nf3 {[%emt 0:00:03]} Bd7 {[%emt 0:00:01]} 9. O-O {[%emt 0:00:04]} O-O {[%emt 0:
00:01]} 10. a4 {[%emt 0:00:13]} Re8 {[%emt 0:00:04]} 11. Re1 {[%emt 0:00:01]}
a6 {[%emt 0:00:17]} 12. Bf1 {[%emt 0:00:18]} f5 {[%emt 0:00:09]} 13. Bxg7 {
[%emt 0:00:02]} Kxg7 {[%emt 0:00:01]} 14. exf5 {[%emt 0:00:10]} Bxf5 {[%emt 0:
00:02]} 15. Rxe8 {[%emt 0:00:03]} Qxe8 {[%emt 0:00:01]} 16. d4 {[%emt 0:00:04]}
Bg4 {[%emt 0:00:09]} 17. dxc5 {[%emt 0:00:11]} dxc5 {[%emt 0:00:01]} 18. Qd3 {
[%emt 0:00:10]} Qe6 {[%emt 0:00:47]} 19. Qc3+ {[%emt 0:00:17]} Qf6 {[%emt 0:00:
01]} 20. Qxf6+ Kxf6 {[%emt 0:00:01]} 21. Nd2 {[%emt 0:00:04]} Bf5 {[%emt 0:00:
03]} 22. c3 {[%emt 0:00:08]} Rd8 {[%emt 0:00:06]} 23. Nc4 {[%emt 0:00:01]} Bc2
{[%emt 0:00:04]} 24. Ne3 {[%emt 0:00:17]} Bxb3 {[%emt 0:00:06]} 25. c4 {
[%emt 0:00:06]} Nb4 {[%emt 0:00:04]} 26. Ra3 {[%emt 0:00:17]} Bc2 {[%emt 0:00:
05]} 27. g3 {[%emt 0:00:02]} Be4 {[%emt 0:00:02]} 28. Bg2 {[%emt 0:00:09]} Bxg2
{[%emt 0:00:07]} 29. Kxg2 {[%emt 0:00:01]} Rd2 {[%emt 0:00:03]} 30. Ng4+ {
[%emt 0:00:05]} Kg7 {[%emt 0:00:04]} 31. Kf1 {[%emt 0:00:13]} h5 {[%emt 0:00:
41]} 32. Ne3 {[%emt 0:00:01]} Nd3 {[%emt 0:00:18]} 33. Rb3 {[%emt 0:00:01]}
Rxf2+ {[%emt 0:00:02]} 34. Kg1 {[%emt 0:00:00]} Rd2 {[%emt 0:00:02]} 35. Rxb7 {
[%emt 0:00:06]} Ra2 {[%emt 0:00:08]} 36. Rd7 {[%emt 0:00:04]} Ne5 {[%emt 0:00:
03]} 37. Rc7 {[%emt 0:00:01]} Nf3+ {[%emt 0:00:02]} 38. Kf1 {[%emt 0:00:00]}
Nxh2+ {[%emt 0:00:02]} 39. Ke1 {[%emt 0:00:01]} Nf3+ {[%emt 0:00:01]} 40. Kf1 {
[%emt 0:00:05]} Nd2+ {[%emt 0:00:10]} 41. Kg1 {[%emt 0:00:02]} Ne4 {[%emt 0:00:
01]} 42. Nd5 {[%emt 0:00:10]} Rxa4 {[%emt 0:00:03]} 43. Nf4 {[%emt 0:00:01]}
Rxc4 {[%emt 0:00:02]} 44. Ne6+ {[%emt 0:00:01]} Kf6 {[%emt 0:00:03]} 45. Nd8 {
[%emt 0:00:01]} Nxg3 {[%emt 0:00:03]} 46. Rxf7+ {[%emt 0:00:03]} Kg5 {[%emt 0:
00:05]} 47. Kf2 {[%emt 0:00:01]} Nf5 {[%emt 0:00:01]} 48. Ne6+ {[%emt 0:00:02]}
Kg4 {[%emt 0:00:01]} 49. Rc7 {[%emt 0:00:04]} Rc2+ {[%emt 0:00:01]} 50. Ke1 {
[%emt 0:00:01]} h4 {[%emt 0:00:03]} 51. Rc6 {[%emt 0:00:06]} h3 {[%emt 0:00:02]
} 52. Nxc5 {[%emt 0:00:01]} h2 {[%emt 0:00:03]} 53. Rxg6+ {[%emt 0:00:03]} Kh5
{[%emt 0:00:01]} 0-1